[Event "Schachfestival Open-A 2018"]
[Site "Lueneburg"]
[Date "2018.07.11"]
[Round "7"]
[White "Utiatskaja, Irina"]
[Black "Vorobiov, Evgeny E"]
[Result "0-1"]
[ECO "B51"]
[WhiteElo "2155"]
[BlackElo "2564"]
[Annotator "RC"]
[PlyCount "116"]
[EventDate "2018.07.06"]
[EventType "swiss"]
[EventCountry "GER"]
[SourceTitle "playchess.com"]
[Source "ChessBase"]
[SourceQuality "1"]
[TimeControl "40/5400+30:1800+30"]

1. e4 {[%emt 0:00:06]} c5 {[%emt 0:00:00]} 2. Nf3 {[%emt 0:00:10]} d6 {[%emt 0:00:00]} 3. Bb5+ {[%emt 0:00:56]} Nd7 {[%emt 0:00:05]} 4. O-O {[%emt 0:00:34]} a6 {[%emt 0:00:23]} 5. Bd3 {[%emt 0:01:07]} Ngf6 {[%emt 0:01:13]} 6. c3 {[%emt 0:05:32]} b5 {[%emt 0:04:38]} 7. Bc2 {[%emt 0:00:40]} Bb7 {[%emt 0:00:13]} 8. Re1 {[%emt 0:00:04]} Qc7 {[%emt 0:02:17]} 9. a4 {[%emt 0:02:36]} b4 {[%emt 0:00:56]} 10. a5 {[%emt 0:00:35]} e6 {[%emt 0:02:41]} 11. d3 {[%emt 0:05:08]} bxc3 {[%emt 0:02:58]} 12. bxc3 {[%emt 0:01:06]} Be7 {[%emt 0:00:42]} 13. Nbd2 {[%emt 0:12:35]} O-O {[%emt 0:03:33]} 14. Nc4 {[%emt 0:01:49]} d5 {[%emt 0:04:03]} 15. exd5 {[%emt 0:12:46]} Nxd5 {[%emt 0:00:57]} 16. Ra3 {[%emt 0:01:12]} Bf6 {[%emt 0:04:09]} 17. Bd2 {[%emt 0:00:05]} h6 {[%emt 0:08:28]} 18. Qe2 {[%emt 0:03:21]} Nf4 {[%emt 0:11:30]} 19. Bxf4 {[%emt 0:10:50]} Qxf4 {[%emt 0:00:06]} 20. Nce5 {[%emt 0:01:45]} Rfd8 {[%emt 0:12:58]} 21. Ra4 {[%emt 0:09:58]} Bxf3 {[%emt 0:01:12]} 22. Nxf3 {[%emt 0:00:05]} Qd6 {[%emt 0:01:30]} 23. d4 {[%emt 0:02:23]} cxd4 {[%emt 0:00:47]} 24. cxd4 {[%emt 0:01:11]} Rab8 {[%emt 0:02:07]} 25. h3 {[%emt 0:04:06]} g6 {[%emt 0:04:14]} 26. Ne5 {[%emt 0:06:49]} Kg7 {[%emt 0:06:21]} 27. Rc4 {[%emt 0:04:28]} Rbc8 {[%emt 0:09:47]} 28. Bb3 {[%emt 0:06:00]} Bxe5 {[%emt 0:03:39]} 29. dxe5 {[%emt 0:00:13]} Qa3 {[%emt 0:00:16]} 30. Rxc8 {[%emt 0:01:52]} Rxc8 {[%emt 0:00:05]} 31. Qxa6 {[%emt 0:01:21]} Rc5 {[%emt 0:01:24]} 32. Qd6 {[%emt 0:03:40]} Nxe5 {[%emt 0:03:45]} 33. Qd4 {[%emt 0:00:20]} Qxa5 {[%emt 0:00:23]} 34. Re3 {[%emt 0:00:46]} Kg8 {[%emt 0:04:26]} 35. f4 {[%emt 0:00:02]} Nc6 {[%emt 0:01:00]} 36. Qd7 {[%emt 0:00:30]} Qa1+ {[%emt 0:01:58]} 37. Kh2 {[%emt 0:00:04]} Qd4 {[%emt 0:01:13]} 38. Qxd4 {[%emt 0:01:22]} Nxd4 {[%emt 0:00:04]} 39. Bd1 {[%emt 0:00:29]} g5 {[%emt 0:02:34]} 40. Re4 {[%emt 0:00:29]} Rd5 {[%emt 0:00:21]} 41. fxg5 {[%emt 0:06:38]} hxg5 {[%emt 0:00:25]} 42. Rg4 {[%emt 0:06:47]} f6 {[%emt 0:08:12]} 43. h4 {[%emt 0:05:27]} Kg7 {[%emt 0:01:16]} 44. hxg5 {[%emt 0:06:49]} f5 {[%emt 0:00:46]} 45. Rh4 {[%emt 0:02:48]} Kg6 {[%emt 0:00:15]} 46. Rh8 {[%emt 0:00:44]} Kxg5 {[%emt 0:00:28]} 47. Rg8+ {[%emt 0:00:27]} Kf6 {[%emt 0:03:21]} 48. Bf3 {[%emt 0:00:29]} Ra5 {[%emt 0:01:06]} 49. Rb8 {[%emt 0:01:11]} e5 {[%emt 0:00:57]} 50. Rb4 {[%emt 0:01:42]} Kg5 {[%emt 0:00:34]} 51. Bb7 {[%emt 0:00:45]} Ra1 {[%emt 0:01:23]} 52. Kg3 {[%emt 0:00:35]} Ra2 {[%emt 0:02:12]} 53. Rc4 {[%emt 0:00:49]} f4+ {[%emt 0:01:25]} 54. Kh3 {[%emt 0:00:49]} Ra7 {[%emt 0:06:15]} 55. Rb4 {[%emt 0:01:04]} Ra1 {[%emt 0:01:13]} 56. Kh2 {[%emt 0:00:07]} Nf5 {[%emt 0:01:41]} 57. Be4 {[%emt 0:00:48]} Ng3 {[%emt 0:00:47]} 58. Bb1 {[%emt 0:00:08]} Nf1+ {[%emt 0:00:29]} 0-1

[Event "Schachfestival Open-A 2018"]
[Site "Lueneburg"]
[Date "2018.07.11"]
[Round "7"]
[White "Puschendorf, Steffen"]
[Black "Ploder, Udo"]
[Result "1/2-1/2"]
[ECO "A58"]
[WhiteElo "2153"]
[BlackElo "1874"]
[Annotator "NA"]
[PlyCount "57"]
[EventDate "2018.07.06"]
[EventType "swiss"]
[EventCountry "GER"]
[SourceTitle "playchess.com"]
[Source "ChessBase"]
[SourceQuality "1"]
[TimeControl "40/5400+30:1800+30"]

1. d4 {[%emt 0:00:00]} Nf6 {[%emt 0:00:00]} 2. c4 {[%emt 0:00:00]} c5 {[%emt 0:00:00]} 3. d5 {[%emt 0:00:00]} b5 {[%emt 0:00:02]} 4. cxb5 {[%emt 0:00:00]} a6 {[%emt 0:00:06]} 5. bxa6 {[%emt 0:00:00]} g6 {[%emt 0:00:12]} 6. Nc3 {[%emt 0:00:14]} Bg7 {[%emt 0:00:16]} 7. g3 {[%emt 0:00:19]} O-O {[%emt 0:01:15]} 8. Bg2 {[%emt 0:00:04]} d6 {[%emt 0:00:56]} 9. Nh3 {[%emt 0:00:13]} Nxa6 {[%emt 0:04:56]} 10. O-O {[%emt 0:08:33]} Qb6 {[%emt 0:02:26]} 11. Nf4 {[%emt 0:06:52]} Bd7 {[%emt 0:06:03]} 12. Rb1 {[%emt 0:05:22]} Rfb8 {[%emt 0:01:10]} 13. Bd2 {[%emt 0:04:02]} Nc7 {[%emt 0:04:47]} 14. a3 {[%emt 0:06:09]} Ng4 {[%emt 0:07:34]} 15. Nd3 {[%emt 0:07:06]} Nb5 {[%emt 0:06:14]} 16. Nxb5 {[%emt 0:09:38]} Bxb5 {[%emt 0:00:26]} 17. Bf4 {[%emt 0:10:59]} Qa6 {[%emt 0:03:53]} 18. Qc2 {[%emt 0:13:12]} Ba4 {[%emt 0:05:44]} 19. b3 {[%emt 0:01:07]} Bxb3 {[%emt 0:06:54]} 20. Rxb3 {[%emt 0:03:56]} Rxb3 {[%emt 0:00:16]} 21. Qxb3 {[%emt 0:00:10]} c4 {[%emt 0:00:10]} 22. Qb4 {[%emt 0:00:58]} cxd3 {[%emt 0:00:29]} 23. exd3 {[%emt 0:00:15]} Qxa3 {[%emt 0:00:55]} 24. Bxd6 {[%emt 0:00:58]} exd6 {[%emt 0:01:32]} 25. Qxg4 {[%emt 0:00:07]} Qxd3 {[%emt 0:01:45]} 26. Qd7 {[%emt 0:03:15]} Be5 {[%emt 0:07:02]} 27. h4 {[%emt 0:01:11]} Ra2 {[%emt 0:00:59]} 28. Qg4 {[%emt 0:01:52]} h5 {[%emt 0:01:45]} 29. Qe4 {[%emt 0:01:46]} 1/2-1/2

[Event "Schachfestival Open-A 2018"]
[Site "Lueneburg"]
[Date "2018.07.11"]
[Round "7"]
[White "Wobbe, Sven"]
[Black "Colpe, Malte"]
[Result "0-1"]
[ECO "C95"]
[WhiteElo "2049"]
[BlackElo "2382"]
[Annotator "NA"]
[PlyCount "90"]
[EventDate "2018.07.06"]
[EventType "swiss"]
[EventCountry "GER"]
[SourceTitle "playchess.com"]
[Source "ChessBase"]
[SourceQuality "1"]
[TimeControl "40/5400+30:1800+30"]

1. e4 {[%emt 0:00:00]} e5 {[%emt 0:00:00]} 2. Nf3 {[%emt 0:00:00]} Nc6 {[%emt 0:00:00]} 3. Bb5 {[%emt 0:00:35]} a6 {[%emt 0:00:00]} 4. Ba4 {[%emt 0:00:23]} Nf6 {[%emt 0:00:03]} 5. O-O {[%emt 0:01:26]} Be7 {[%emt 0:00:09]} 6. Re1 {[%emt 0:00:19]} b5 {[%emt 0:00:07]} 7. Bb3 {[%emt 0:00:05]} d6 {[%emt 0:00:06]} 8. c3 {[%emt 0:00:57]} O-O {[%emt 0:02:17]} 9. h3 {[%emt 0:01:07]} Nb8 {[%emt 0:00:27]} 10. d4 {[%emt 0:01:31]} Nbd7 {[%emt 0:00:10]} 11. Nbd2 {[%emt 0:00:45]} Bb7 {[%emt 0:00:10]} 12. Bc2 {[%emt 0:00:39]} Re8 {[%emt 0:00:20]} 13. Nf1 {[%emt 0:00:50]} Bf8 {[%emt 0:00:08]} 14. Ng3 {[%emt 0:00:30]} g6 {[%emt 0:00:07]} 15. Bg5 {[%emt 0:01:50]} h6 {[%emt 0:01:26]} 16. Bd2 {[%emt 0:16:11]} Bg7 {[%emt 0:01:29]} 17. b3 {[%emt 0:02:09]} Nb6 {[%emt 0:13:22]} 18. dxe5 {[%emt 0:06:14]} dxe5 {[%emt 0:00:38]} 19. Qe2 {[%emt 0:00:55]} Qe7 {[%emt 0:02:44]} 20. a3 {[%emt 0:14:20]} Nfd7 {[%emt 0:03:25]} 21. c4 {[%emt 0:03:38]} bxc4 {[%emt 0:02:58]} 22. bxc4 {[%emt 0:00:09]} a5 {[%emt 0:02:33]} 23. Be3 {[%emt 0:08:33]} Ba6 {[%emt 0:01:37]} 24. Nd2 {[%emt 0:01:06]} Nc5 {[%emt 0:01:51]} 25. Bxc5 {[%emt 0:08:54]} Qxc5 {[%emt 0:00:07]} 26. Qe3 {[%emt 0:01:04]} Qxe3 {[%emt 0:03:28]} 27. Rxe3 {[%emt 0:00:12]} Red8 {[%emt 0:03:24]} 28. Ngf1 {[%emt 0:01:39]} Bf8 {[%emt 0:02:52]} 29. Bd3 {[%emt 0:09:50]} Rd7 {[%emt 0:04:15]} 30. Be2 {[%emt 0:01:11]} a4 {[%emt 0:03:35]} 31. Rc3 {[%emt 0:02:09]} Bc5 {[%emt 0:02:23]} 32. Ra2 {[%emt 0:01:16]} Rad8 {[%emt 0:04:30]} 33. g3 {[%emt 0:01:24]} f6 {[%emt 0:01:35]} 34. h4 {[%emt 0:00:52]} h5 {[%emt 0:00:19]} 35. Kg2 {[%emt 0:01:13]} Rd4 {[%emt 0:03:54]} 36. Nf3 {[%emt 0:03:06]} Rxe4 {[%emt 0:00:41]} 37. Bd3 {[%emt 0:02:01]} Rg4 {[%emt 0:01:09]} 38. N3h2 {[%emt 0:00:48]} Rgd4 {[%emt 0:06:56]} 39. Bxg6 {[%emt 0:00:36]} Bxc4 {[%emt 0:01:42]} 40. Rac2 {[%emt 0:00:45]} Bd6 {[%emt 0:05:00]} 41. Bxh5 {[%emt 0:30:58]} Bb3 {[%emt 0:31:23]} 42. Rd2 {[%emt 0:06:09]} Nc4 {[%emt 0:05:20]} 43. Rxd4 {[%emt 0:00:00]} exd4 {[%emt 0:00:00]} 44. Rd3 {[%emt 0:00:00]} Bxa3 {[%emt 0:00:00]} 45. Nf3 {[%emt 0:00:00]} c5 {[%emt 0:00:00]} 0-1

[Event "Schachfestival Open-A 2018"]
[Site "Lueneburg"]
[Date "2018.07.11"]
[Round "7"]
[White "Harringer, Manfred"]
[Black "Sriram, Jha"]
[Result "0-1"]
[ECO "B27"]
[WhiteElo "1998"]
[BlackElo "2409"]
[Annotator "NA"]
[PlyCount "52"]
[EventDate "2018.07.06"]
[EventType "swiss"]
[EventCountry "GER"]
[SourceTitle "playchess.com"]
[Source "ChessBase"]
[SourceQuality "1"]
[TimeControl "40/5400+30:1800+30"]

1. e4 {[%emt 0:00:00]} c5 {[%emt 0:04:45]} 2. Nf3 {[%emt 0:00:00]} g6 {[%emt 0:01:50]} 3. c3 {[%emt 0:01:42]} Bg7 {[%emt 0:00:46]} 4. d3 {[%emt 0:02:15]} d5 {[%emt 0:02:58]} 5. Nbd2 {[%emt 0:03:28]} Nf6 {[%emt 0:03:24]} 6. g3 {[%emt 0:03:35]} Nc6 {[%emt 0:02:23]} 7. Bg2 {[%emt 0:00:32]} dxe4 {[%emt 0:02:23]} 8. dxe4 {[%emt 0:01:04]} Qd3 {[%emt 0:00:11]} 9. Qe2 {[%emt 0:03:54]} Qxe2+ {[%emt 0:03:12]} 10. Kxe2 {[%emt 0:00:26]} b6 {[%emt 0:00:32]} 11. h3 {[%emt 0:15:58]} Ba6+ {[%emt 0:00:26]} 12. Ke1 {[%emt 0:02:51]} Rd8 {[%emt 0:13:30]} 13. Nh4 {[%emt 0:05:35]} Ne5 {[%emt 0:00:31]} 14. Bf1 {[%emt 0:01:47]} Nd3+ {[%emt 0:05:22]} 15. Bxd3 {[%emt 0:00:19]} Rxd3 {[%emt 0:00:39]} 16. Ng2 {[%emt 0:07:47]} O-O {[%emt 0:09:57]} 17. Nf4 {[%emt 0:01:30]} Rdd8 {[%emt 0:06:15]} 18. f3 {[%emt 0:06:38]} e5 {[%emt 0:04:41]} 19. Ng2 {[%emt 0:01:49]} Nh5 {[%emt 0:00:56]} 20. g4 {[%emt 0:06:30]} Ng3 {[%emt 0:00:26]} 21. Rh2 {[%emt 0:02:09]} Ne2 {[%emt 0:09:00]} 22. Nb3 {[%emt 0:09:32]} Nxc1 {[%emt 0:01:54]} 23. Rxc1 {[%emt 0:07:35]} Bh6 {[%emt 0:00:32]} 24. Rd1 {[%emt 0:01:49]} Rxd1+ {[%emt 0:01:29]} 25. Kxd1 {[%emt 0:00:07]} Rd8+ {[%emt 0:00:23]} 26. Ke1 {[%emt 0:00:07]} c4 {[%emt 0:00:38]} 0-1

[Event "Schachfestival Open-A 2018"]
[Site "Lueneburg"]
[Date "2018.07.11"]
[Round "7"]
[White "von Estorff, Jacob"]
[Black "Hess, Christian Mathias"]
[Result "1-0"]
[ECO "B12"]
[WhiteElo "1838"]
[BlackElo "2243"]
[Annotator "NA"]
[PlyCount "117"]
[EventDate "2018.07.06"]
[EventType "swiss"]
[EventCountry "GER"]
[SourceTitle "playchess.com"]
[Source "ChessBase"]
[SourceQuality "1"]
[TimeControl "40/5400+30:1800+30"]

1. e4 {[%emt 0:00:00]} c6 {[%emt 0:00:00]} 2. d4 {[%emt 0:00:00]} d5 {[%emt 0:00:00]} 3. e5 {[%emt 0:00:22]} Bf5 {[%emt 0:00:40]} 4. Nc3 {[%emt 0:01:19]} e6 {[%emt 0:01:37]} 5. g4 {[%emt 0:00:27]} Bg6 {[%emt 0:00:34]} 6. Nge2 {[%emt 0:01:11]} c5 {[%emt 0:00:44]} 7. h4 {[%emt 0:04:42]} h5 {[%emt 0:01:20]} 8. Nf4 {[%emt 0:01:47]} Bh7 {[%emt 0:00:28]} 9. Nxh5 {[%emt 0:06:17]} Nc6 {[%emt 0:03:00]} 10. Be3 {[%emt 0:03:10]} Bxc2 {[%emt 0:17:59]} 11. Qxc2 {[%emt 0:22:57]} cxd4 {[%emt 0:00:35]} 12. O-O-O {[%emt 0:11:33]} dxe3 {[%emt 0:11:30]} 13. fxe3 {[%emt 0:04:02]} Qc7 {[%emt 0:10:31]} 14. e4 {[%emt 0:03:10]} d4 {[%emt 0:02:31]} 15. Nb5 {[%emt 0:01:57]} Qxe5 {[%emt 0:00:11]} 16. Nxd4 {[%emt 0:01:18]} Nxd4 {[%emt 0:21:33]} 17. Rxd4 {[%emt 0:00:44]} a6 {[%emt 0:05:17]} 18. Bxa6 {[%emt 0:10:57]} Ne7 {[%emt 0:05:32]} 19. Bxb7 {[%emt 0:13:31]} Qxd4 {[%emt 0:00:27]} 20. Bxa8 {[%emt 0:01:33]} Qa7 {[%emt 0:03:54]} 21. Bc6+ {[%emt 0:01:22]} Nxc6 {[%emt 0:00:20]} 22. Qxc6+ {[%emt 0:00:04]} Qd7 {[%emt 0:00:24]} 23. Qa8+ {[%emt 0:01:30]} Qd8 {[%emt 0:00:19]} 24. Qxd8+ {[%emt 0:01:01]} Kxd8 {[%emt 0:00:02]} 25. Ng3 {[%emt 0:01:19]} Be7 {[%emt 0:01:15]} 26. h5 {[%emt 0:00:06]} Bg5+ {[%emt 0:00:13]} 27. Kc2 {[%emt 0:00:06]} Ke7 {[%emt 0:00:47]} 28. Ne2 {[%emt 0:00:41]} Kd6 {[%emt 0:07:23]} 29. Rf1 {[%emt 0:01:14]} Rc8+ {[%emt 0:00:28]} 30. Nc3 {[%emt 0:00:06]} Rc7 {[%emt 0:00:05]} 31. a4 {[%emt 0:00:32]} Kc5 {[%emt 0:01:03]} 32. Rd1 {[%emt 0:01:12]} Bf6 {[%emt 0:00:28]} 33. Kb3 {[%emt 0:02:20]} Be5 {[%emt 0:03:19]} 34. Nb5 {[%emt 0:03:08]} Rb7 {[%emt 0:00:09]} 35. Rc1+ {[%emt 0:00:42]} Kb6 {[%emt 0:00:02]} 36. Kb4 {[%emt 0:00:36]} Rb8 {[%emt 0:01:30]} 37. a5+ {[%emt 0:00:38]} Kb7 {[%emt 0:00:21]} 38. b3 {[%emt 0:00:40]} Bg3 {[%emt 0:01:05]} 39. Ka4 {[%emt 0:00:24]} Rd8 {[%emt 0:00:26]} 40. Rf1 {[%emt 0:00:47]} Rd7 {[%emt 0:00:43]} 41. g5 {[%emt 0:01:32]} Be5 {[%emt 0:02:04]} 42. Na3 {[%emt 0:02:20]} Rd4+ {[%emt 0:02:14]} 43. Nc4 {[%emt 0:00:07]} Rxe4 {[%emt 0:00:48]} 44. Rxf7+ {[%emt 0:00:06]} Ka6 {[%emt 0:00:13]} 45. h6 {[%emt 0:00:57]} gxh6 {[%emt 0:00:12]} 46. gxh6 {[%emt 0:00:05]} Bc3 {[%emt 0:00:41]} 47. Rf3 {[%emt 0:01:35]} Bxa5 {[%emt 0:05:57]} 48. Rh3 {[%emt 0:00:52]} Bc3 {[%emt 0:04:17]} 49. Rxc3 {[%emt 0:00:18]} Rh4 {[%emt 0:00:04]} 50. b4 {[%emt 0:00:53]} Rxh6 {[%emt 0:00:24]} 51. b5+ {[%emt 0:00:39]} Ka7 {[%emt 0:00:32]} 52. Ka5 {[%emt 0:00:49]} Rh5 {[%emt 0:01:29]} 53. Re3 {[%emt 0:00:33]} Rh1 {[%emt 0:01:08]} 54. Rxe6 {[%emt 0:00:14]} Ra1+ {[%emt 0:00:35]} 55. Kb4 {[%emt 0:00:05]} Kb7 {[%emt 0:00:28]} 56. Re7+ {[%emt 0:00:08]} Kb8 {[%emt 0:00:11]} 57. Kc5 {[%emt 0:00:03]} Rh1 {[%emt 0:00:33]} 58. Kc6 {[%emt 0:01:49]} Rh8 {[%emt 0:01:01]} 59. Nd6 {[%emt 0:00:43]} 1-0

[Event "Schachfestival Open-A 2018"]
[Site "Lueneburg"]
[Date "2018.07.11"]
[Round "7"]
[White "De La Torre Fajardo, Felix"]
[Black "Herrmann, Andreas"]
[Result "0-1"]
[ECO "B24"]
[WhiteElo "1534"]
[BlackElo "2171"]
[Annotator "NA"]
[PlyCount "68"]
[EventDate "2018.07.06"]
[EventType "swiss"]
[EventCountry "GER"]
[SourceTitle "playchess.com"]
[Source "ChessBase"]
[SourceQuality "1"]
[TimeControl "40/5400+30:1800+30"]

1. e4 {[%emt 0:00:00]} c5 {[%emt 0:00:00]} 2. Nc3 {[%emt 0:00:00]} Nc6 {[%emt 0:00:26]} 3. Bb5 {[%emt 0:00:00]} Na5 {[%emt 0:00:05]} 4. f4 {[%emt 0:06:30]} a6 {[%emt 0:00:07]} 5. Be2 {[%emt 0:00:14]} e6 {[%emt 0:00:38]} 6. Bf3 {[%emt 0:07:54]} Qc7 {[%emt 0:00:19]} 7. Nge2 {[%emt 0:01:10]} d6 {[%emt 0:00:13]} 8. O-O {[%emt 0:05:45]} Nf6 {[%emt 0:00:07]} 9. b3 {[%emt 0:05:54]} Be7 {[%emt 0:00:15]} 10. Bb2 {[%emt 0:01:04]} O-O {[%emt 0:00:19]} 11. Qe1 {[%emt 0:03:55]} Nc6 {[%emt 0:04:21]} 12. Qg3 {[%emt 0:03:56]} Rd8 {[%emt 0:06:58]} 13. Rad1 {[%emt 0:04:38]} Rb8 {[%emt 0:01:18]} 14. Kh1 {[%emt 0:06:29]} b5 {[%emt 0:00:13]} 15. e5 {[%emt 0:03:52]} Ne8 {[%emt 0:00:15]} 16. exd6 {[%emt 0:04:23]} Bxd6 {[%emt 0:02:44]} 17. Ne4 {[%emt 0:02:00]} Be7 {[%emt 0:00:21]} 18. Nc1 Nd4 {[%emt 0:00:29]} 19. Nd3 {[%emt 0:09:04]} Bb7 {[%emt 0:01:41]} 20. Ne5 {[%emt 0:07:29]} Nf5 {[%emt 0:02:20]} 21. Qh3 {[%emt 0:01:52]} Nd4 {[%emt 0:10:19]} 22. Nxf7 {[%emt 0:06:10]} Bxe4 {[%emt 0:06:24]} 23. Nxd8 {[%emt 0:01:48]} Bxf3 {[%emt 0:02:44]} 24. Bxd4 {[%emt 0:00:37]} Rxd8 {[%emt 0:00:25]} 25. Qxe6+ {[%emt 0:01:20]} Kh8 {[%emt 0:00:09]} 26. Be5 {[%emt 0:00:23]} Bxg2+ {[%emt 0:04:58]} 27. Kxg2 {[%emt 0:00:01]} Qb7+ {[%emt 0:00:09]} 28. Kg3 {[%emt 0:02:35]} Nf6 {[%emt 0:00:17]} 29. Rde1 {[%emt 0:02:58]} Rxd2 {[%emt 0:02:54]} 30. Rf2 {[%emt 0:01:29]} Nh5+ {[%emt 0:00:17]} 31. Kh3 {[%emt 0:08:28]} Rxf2 {[%emt 0:00:12]} 32. Rg1 {[%emt 0:01:39]} Nxf4+ {[%emt 0:02:32]} 33. Bxf4 {[%emt 0:00:31]} Rxf4 {[%emt 0:00:07]} 34. Qe5 {[%emt 0:01:55]} Qf3+ {[%emt 0:00:13]} 0-1

[Event "Schachfestival Open-A 2018"]
[Site "Lueneburg"]
[Date "2018.07.12"]
[Round "8"]
[White "Kardoeus, David"]
[Black "Drozdowski, Konrad"]
[Result "1-0"]
[ECO "B42"]
[WhiteElo "2188"]
[BlackElo "2076"]
[Annotator "NA"]
[PlyCount "81"]
[EventDate "2018.07.06"]
[EventType "swiss"]
[EventCountry "GER"]
[SourceTitle "playchess.com"]
[Source "ChessBase"]
[SourceQuality "1"]
[TimeControl "40/5400+30:1800+30"]

1. e4 {[%emt 0:00:40]} c5 {[%emt 0:00:00]} 2. Nf3 {[%emt 0:00:21]} e6 {[%emt 0:00:00]} 3. d4 {[%emt 0:00:08]} cxd4 {[%emt 0:00:00]} 4. Nxd4 {[%emt 0:00:07]} a6 {[%emt 0:00:00]} 5. Bd3 {[%emt 0:01:03]} Ne7 {[%emt 0:00:24]} 6. O-O {[%emt 0:00:39]} Nbc6 {[%emt 0:00:09]} 7. c3 {[%emt 0:02:12]} Nxd4 {[%emt 0:04:20]} 8. cxd4 {[%emt 0:00:16]} d6 {[%emt 0:01:05]} 9. Nc3 {[%emt 0:12:17]} g6 {[%emt 0:05:24]} 10. Be3 {[%emt 0:05:17]} Bg7 {[%emt 0:02:00]} 11. Qd2 {[%emt 0:00:35]} O-O {[%emt 0:01:11]} 12. f4 {[%emt 0:02:14]} f5 {[%emt 0:08:29]} 13. Rac1 {[%emt 0:12:34]} Bd7 {[%emt 0:02:35]} 14. d5 {[%emt 0:01:51]} fxe4 {[%emt 0:07:33]} 15. Bxe4 {[%emt 0:12:56]} e5 {[%emt 0:02:24]} 16. fxe5 {[%emt 0:07:52]} Rxf1+ {[%emt 0:07:08]} 17. Rxf1 {[%emt 0:00:07]} Bxe5 {[%emt 0:00:05]} 18. Bd4 {[%emt 0:12:58]} Bxd4+ {[%emt 0:02:08]} 19. Qxd4 {[%emt 0:00:11]} Nf5 {[%emt 0:07:26]} 20. Bxf5 {[%emt 0:03:44]} Bxf5 {[%emt 0:01:16]} 21. h3 {[%emt 0:09:35]} Qg5 {[%emt 0:03:13]} 22. Kh2 {[%emt 0:01:42]} h5 {[%emt 0:05:26]} 23. Ne4 {[%emt 0:02:50]} Bxe4 {[%emt 0:06:12]} 24. Qxe4 {[%emt 0:00:07]} Qe5+ {[%emt 0:00:16]} 25. Qxe5 {[%emt 0:00:09]} dxe5 {[%emt 0:00:01]} 26. Rf6 {[%emt 0:02:12]} Kg7 {[%emt 0:03:52]} 27. Rb6 {[%emt 0:02:07]} Rd8 {[%emt 0:01:55]} 28. Rxb7+ {[%emt 0:00:30]} Kh6 {[%emt 0:00:16]} 29. Rb6 {[%emt 0:01:49]} Rxd5 {[%emt 0:00:51]} 30. Rxa6 {[%emt 0:00:30]} h4 {[%emt 0:04:53]} 31. Ra4 {[%emt 0:00:32]} Kh5 {[%emt 0:02:43]} 32. Re4 {[%emt 0:00:11]} g5 {[%emt 0:03:10]} 33. b4 {[%emt 0:03:54]} Kg6 {[%emt 0:03:19]} 34. Re2 {[%emt 0:01:13]} Kf5 {[%emt 0:01:12]} 35. Rb2 {[%emt 0:00:17]} e4 {[%emt 0:00:13]} 36. b5 {[%emt 0:00:42]} e3 {[%emt 0:00:29]} 37. b6 {[%emt 0:00:15]} Rd2 {[%emt 0:00:18]} 38. Rb1 {[%emt 0:00:32]} e2 {[%emt 0:00:15]} 39. b7 {[%emt 0:00:57]} Rd8 {[%emt 0:00:25]} 40. Rb5+ {[%emt 0:01:09]} Kf4 {[%emt 0:00:15]} 41. b8=Q+ {[%emt 0:01:38]} 1-0

[Event "Schachfestival Open-A 2018"]
[Site "Lueneburg"]
[Date "2018.07.12"]
[Round "8"]
[White "Herrmann, Andreas"]
[Black "Utiatskaja, Irina"]
[Result "0-1"]
[ECO "D02"]
[WhiteElo "2171"]
[BlackElo "2155"]
[Annotator "NA"]
[PlyCount "94"]
[EventDate "2018.07.06"]
[EventType "swiss"]
[EventCountry "GER"]
[SourceTitle "playchess.com"]
[Source "ChessBase"]
[SourceQuality "1"]
[TimeControl "40/5400+30:1800+30"]

1. d4 {[%emt 0:00:00]} d5 {[%emt 0:01:14]} 2. Nf3 {[%emt 0:00:00]} Nf6 {[%emt 0:00:08]} 3. c3 {[%emt 0:00:00]} c5 {[%emt 0:01:48]} 4. Bf4 {[%emt 0:00:00]} Qb6 {[%emt 0:00:39]} 5. Qb3 {[%emt 0:00:07]} Nc6 {[%emt 0:00:20]} 6. e3 {[%emt 0:00:11]} c4 {[%emt 0:00:12]} 7. Qxb6 {[%emt 0:00:25]} axb6 {[%emt 0:00:05]} 8. Nbd2 {[%emt 0:00:07]} b5 {[%emt 0:00:21]} 9. Ne5 {[%emt 0:00:50]} e6 {[%emt 0:12:49]} 10. Be2 {[%emt 0:00:12]} b4 {[%emt 0:00:22]} 11. O-O {[%emt 0:00:24]} Nxe5 {[%emt 0:03:08]} 12. dxe5 {[%emt 0:00:10]} Nd7 {[%emt 0:00:04]} 13. e4 {[%emt 0:00:10]} b5 {[%emt 0:00:27]} 14. exd5 {[%emt 0:00:15]} exd5 {[%emt 0:00:33]} 15. Nf3 {[%emt 0:00:13]} Bc5 {[%emt 0:00:34]} 16. Rfd1 {[%emt 0:00:19]} Bb7 {[%emt 0:00:09]} 17. cxb4 {[%emt 0:00:24]} Bxb4 {[%emt 0:00:30]} 18. Nd4 {[%emt 0:00:06]} Ra5 {[%emt 0:09:02]} 19. e6 {[%emt 0:00:21]} fxe6 {[%emt 0:00:05]} 20. Nxe6 {[%emt 0:00:06]} Kf7 {[%emt 0:00:49]} 21. Bg4 {[%emt 0:01:15]} Nf6 {[%emt 0:04:56]} 22. Ng5+ {[%emt 0:00:56]} Kg6 {[%emt 0:12:06]} 23. Be6 {[%emt 0:03:14]} h6 {[%emt 0:04:56]} 24. Nf7 {[%emt 0:00:31]} Re8 {[%emt 0:05:44]} 25. Ne5+ {[%emt 0:00:28]} Kh7 {[%emt 0:00:13]} 26. Bf5+ {[%emt 0:00:13]} Kg8 {[%emt 0:01:16]} 27. Bg6 {[%emt 0:00:11]} Re7 {[%emt 0:00:10]} 28. a3 {[%emt 0:04:14]} Bc5 {[%emt 0:08:47]} 29. Rac1 {[%emt 0:10:37]} Ra6 {[%emt 0:03:43]} 30. Bf5 {[%emt 0:10:10]} Nh5 {[%emt 0:10:04]} 31. g3 {[%emt 0:03:19]} Nxf4 {[%emt 0:02:00]} 32. gxf4 {[%emt 0:00:07]} Rf6 {[%emt 0:05:32]} 33. Nd7 {[%emt 0:00:10]} Bxf2+ {[%emt 0:01:16]} 34. Kxf2 {[%emt 0:00:26]} Rxf5 {[%emt 0:00:03]} 35. Nc5 {[%emt 0:00:11]} Rxf4+ {[%emt 0:00:35]} 36. Kg3 {[%emt 0:00:21]} Rf5 {[%emt 0:02:36]} 37. Re1 {[%emt 0:01:25]} Rc7 {[%emt 0:05:53]} 38. Re8+ {[%emt 0:01:29]} Kh7 {[%emt 0:00:04]} 39. Ne6 {[%emt 0:00:53]} Rcf7 {[%emt 0:00:04]} 40. h4 {[%emt 0:02:16]} Bc6 {[%emt 0:02:03]} 41. Rd8 {[%emt 0:30:17]} Rf3+ {[%emt 0:33:24]} 42. Kg4 {[%emt 0:00:51]} R3f6 {[%emt 0:01:05]} 43. Re1 {[%emt 0:00:52]} Bd7 {[%emt 0:00:58]} 44. Rxd7 {[%emt 0:00:35]} Rxd7 {[%emt 0:00:06]} 45. h5 {[%emt 0:01:08]} d4 {[%emt 0:00:00]} 46. Nc5 {[%emt 0:00:00]} Rd5 {[%emt 0:00:00]} 47. Ne4 {[%emt 0:00:00]} Rf7 {[%emt 0:00:00]} 0-1